bitfinex/quotes_ETHUSD_20250916
["timestamp","ask_amount","ask_price","bid_price","bid_amount"]
[1757999677224,0.002,4536.4,4536.3,19.70065878]
[1757999677438,0.002,4536.4,4536.3,23.38165878]
[1757999678328,0.002,4536.4,4536.3,22.93745878]
[1757999678988,0.002,4536.4,4536.3,18.96245878]
[1757999679194,0.2642,4536.4,4536.3,18.39943974]
[1757999679432,0.002,4536.4,4536.3,22.08043974]
[1757999679719,0.002,4536.4,4536.3,18.87413974]
[1757999679921,0.695,4536.4,4536.3,16.195]
[1757999680134,0.002,4536.4,4536.3,22.55513974]
[1757999680493,0.002,4536.4,4536.3,23.29333974]
[1757999681927,0.2642,4536.4,4536.3,16.195]
[1757999682131,2.91849114,4536.4,4536.3,16.195]
[1757999682329,2.91849114,4536.4,4536.3,1.695]
[1757999682496,2.91849114,4536.4,4536.3,5.376]
[1757999683323,2.91849114,4536.4,4536.3,1.695]
[1757999683324,4.96081904,4536.4,4536.3,1.695]
[1757999683530,4.96081904,4536.4,4536.3,5.376]
[1757999684198,7.16521018,4536.4,4536.3,5.376]
[1757999684393,4.96081904,4536.4,4536.3,5.376]
[1757999684713,7.16521018,4536.4,4536.3,5.376]
[1757999685605,4.96081904,4536.4,4536.3,5.376]
[1757999685803,7.16521018,4536.4,4536.3,5.376]
[1757999686000,4.96081904,4536.4,4536.3,5.376]
[1757999686224,0.2642,4536.4,4536.3,5.376]
[1757999686430,0.7141,4536.4,4536.3,5.4856]
[1757999686726,0.695,4536.4,4536.3,5.4856]
[1757999687123,0.2642,4536.4,4536.3,5.4856]
[1757999687935,0.2642,4536.4,4536.3,1.8046]
[1757999688091,0.2642,4536.4,4536.3,5.4856]
[1757999688725,0.695,4536.4,4536.3,5.4856]
[1757999690430,0.695,4536.4,4536.3,5.376]
[1757999690431,0.7141,4536.4,4536.3,5.376]
[1757999691056,2.91849114,4536.4,4536.3,5.376]
[1757999693263,2.91849114,4536.4,4536.3,1.695]
[1757999693555,2.91849114,4536.4,4536.3,5.376]
[1757999694128,2.91849114,4536.4,4536.3,1.695]
[1757999694427,2.91849114,4536.4,4536.3,5.376]
[1757999695058,5.91849114,4536.4,4536.3,5.376]
[1757999695260,10.95721018,4536.4,4536.3,1.695]
[1757999695487,0.792,4536.0,4535.8,0.001]
[1757999695632,9.45135318,4535.9,4535.8,0.001]
[1757999695960,10.14435318,4535.9,4535.8,3.307]
[1757999698266,7.93971904,4535.9,4535.8,3.307]
[1757999698508,7.51061904,4535.9,4535.8,3.307]
[1757999699508,5.20468274,4535.8,4535.5,1.695]
[1757999699710,4.24671904,4535.6,4535.5,1.695]
[1757999699994,4.51221904,4535.6,4535.5,4.067]
[1757999700506,4.51221904,4535.6,4535.4,0.001]
[1757999700507,5.20482857,4535.5,4535.4,0.001]
[1757999700859,5.49102857,4535.5,4535.4,0.001]
[1757999701201,5.91692857,4535.5,4535.4,0.001]
[1757999701408,5.89782857,4535.5,4535.4,0.001]
[1757999701584,3.2671,4535.5,4535.4,0.001]
[1757999701977,5.89782857,4535.5,4535.4,0.001]
[1757999702819,5.88749503,4536.2,4535.4,0.001]
[1757999702820,2.20463456,4535.9,4535.4,0.7822]
[1757999703097,3.0,4535.8,4535.5,0.4685]
[1757999703300,3.0,4535.8,4535.6,3.684]
[1757999703495,3.0,4535.8,4535.6,18.6525]
[1757999703667,3.0,4535.8,4535.6,18.184]
[1757999703868,3.0,4535.8,4535.7,0.4685]
[1757999704068,3.2639,4535.8,4535.7,0.4685]
[1757999705873,4.24671904,4535.9,4535.7,0.7812]
[1757999706073,3.0,4535.8,4535.7,0.7812]
[1757999706313,3.0,4535.8,4535.7,0.7621]
[1757999706716,0.002,4536.4,4535.7,0.7621]
[1757999706923,4.24671904,4536.0,4535.7,2.5667]
[1757999707117,3.0,4535.9,4535.8,0.9179]
[1757999707289,4.24671904,4536.0,4535.8,0.9179]
[1757999707487,3.002,4536.4,4535.9,0.7812]
[1757999707692,7.24671904,4536.1,4536.0,4.6019]
[1757999707888,7.24671904,4536.1,4536.0,4.9146]
[1757999708845,0.002,4536.4,4536.0,4.9146]
[1757999708976,3.002,4536.4,4536.1,0.1096]
[1757999709177,3.002,4536.4,4536.2,3.683]
[1757999709611,3.002,4536.4,4536.3,0.4685]
[1757999710401,3.002,4536.4,4536.2,3.683]
[1757999710402,0.002,4536.4,4536.2,3.683]
[1757999710597,4.24871904,4536.4,4536.3,0.7621]
[1757999711410,4.24871904,4536.4,4536.3,3.54463974]
[1757999711411,0.002,4536.4,4536.3,3.54463974]
[1757999711711,0.002,4536.4,4536.3,18.04463974]
[1757999717232,0.002,4536.4,4536.3,17.93503974]
[1757999721816,0.02,4537.9,4536.4,0.792]
[1757999722019,0.02,4537.9,4537.8,2.50911104]
[1757999722226,0.02,4537.9,4537.8,7.90911104]
[1757999722545,0.02,4537.9,4537.8,23.37451104]
[1757999722840,0.02,4537.9,4537.8,23.80938507]
[1757999724832,0.02,4537.9,4537.8,23.34218507]
[1757999725024,0.02,4537.9,4537.8,23.80938507]
[1757999726745,0.02,4537.9,4537.8,19.63718507]
[1757999726945,0.02,4537.9,4537.8,23.80638507]
[1757999727139,0.02,4537.9,4537.8,23.91598507]
[1757999730852,1e-08,4537.9,4537.8,26.80638507]
[1757999731221,0.23950001,4537.9,4537.8,14.9982]
[1757999731443,1e-08,4537.9,4537.8,21.67651104]
[1757999732133,1e-08,4537.9,4537.8,25.46851104]
[1757999732648,1e-08,4537.9,4537.8,21.41939992]
[1757999732952,1e-08,4537.9,4537.8,25.15239992]
[1757999733640,1e-08,4537.9,4537.8,25.15439992]
[1757999734152,1e-08,4537.9,4537.8,21.41939992]
[1757999734353,1e-08,4537.9,4537.8,25.15339992]
[1757999734722,1e-08,4537.9,4537.8,25.94539992]
[1757999735148,1e-08,4537.9,4537.8,22.21139992]
[1757999735363,1e-08,4537.9,4537.8,25.94639992]
[1757999735730,0.08,4538.8,4538.7,2.20327406]
[1757999736051,0.08,4538.8,4538.7,7.63127406]
[1757999736230,0.3173,4538.8,4538.7,5.43]
[1757999736430,0.3173,4538.8,4538.7,22.13327406]
[1757999736651,0.08,4538.8,4538.7,18.89547406]
[1757999736860,0.08,4538.8,4538.7,22.64947406]
[1757999737153,0.08,4538.8,4538.7,22.95487406]
[1757999737454,0.3173,4538.8,4538.7,22.15127406]
[1757999737826,0.3173,4538.8,4538.7,22.64947406]
[1757999738157,0.3173,4538.8,4538.7,18.39727406]
[1757999738454,0.3173,4538.8,4538.7,22.15227406]
[1757999738654,0.7728,4538.8,4538.7,22.15227406]
[1757999738839,0.7748,4538.8,4538.7,22.15227406]
[1757999739041,0.3193,4538.8,4538.7,16.194]
[1757999739370,0.3193,4538.8,4538.7,19.95]
[1757999739527,0.7748,4538.8,4538.7,19.95]
[1757999739728,0.7748,4538.8,4538.7,22.15327406]
[1757999740027,0.3193,4538.8,4538.7,22.15327406]
[1757999740850,0.3193,4538.8,4538.7,20.0596]
[1757999741050,0.7748,4538.8,4538.7,20.0586]
[1757999741334,0.3193,4538.8,4538.7,14.6096]
[1757999741537,0.3193,4538.8,4538.7,3.753]
[1757999741538,5.88849503,4538.8,4538.7,3.753]
[1757999741978,8.09172055,4538.8,4538.7,3.753]
[1757999742325,5.88849503,4538.8,4538.7,3.753]
[1757999742557,8.09172055,4538.8,4538.7,3.753]
[1757999742954,8.09172055,4538.8,4538.7,3.755]
[1757999743470,2.20337115,4538.5,4538.4,1.694]
[1757999743623,2.20337115,4538.5,4538.4,5.448]
[1757999743824,2.91587115,4538.5,4538.4,5.448]
[1757999744029,6.70787115,4538.5,4538.4,1.694]
[1757999744249,6.70787115,4538.5,4538.4,3.443]
[1757999745269,6.70787115,4538.5,4538.4,1.694]
[1757999745566,6.70787115,4538.5,4538.4,5.447]
[1757999745758,3.0,4538.4,4537.7,1.694]
[1757999745964,4.5045,4538.5,4537.7,1.694]
[1757999745965,2.50231104,4537.8,4537.7,1.694]
[1757999746163,5.91621104,4537.8,4537.7,5.446]
[1757999746640,3.7125,4537.8,4537.2,14.5]
[1757999746966,5.09459503,4537.4,4537.2,14.5]
[1757999747190,7.31746145,4537.7,4537.3,3.751]
[1757999747354,0.2986,4537.4,4537.3,3.751]
[1757999747757,0.6934,4537.4,4537.3,3.751]
[1757999748354,2.67798195,4538.0,4537.3,4.2492]
[1757999748355,3.0,4538.0,4537.3,4.2492]
[1757999748755,5.66131711,4538.0,4537.3,4.2492]
[1757999749270,0.2373,4537.4,4537.3,4.2492]
[1757999749771,5.66132048,4538.0,4537.3,4.2492]
[1757999749971,2.20367069,4537.9,4537.3,4.2492]
[1757999750472,0.2373,4537.4,4537.3,3.751]
[1757999751595,0.2373,4537.4,4537.3,3.8606]
[1757999751967,0.2373,4537.4,4537.2,14.5]
[1757999752167,0.2373,4537.4,4537.3,3.749]
[1757999752766,0.6878,4537.4,4537.3,3.749]
[1757999753394,0.6878,4537.4,4537.1,1.694]
[1757999753395,0.7069,4537.4,4537.1,1.694]
[1757999753600,5.54509503,4537.3,4537.2,3.749]
[1757999753813,5.78949503,4537.3,4537.2,3.749]
[1757999754265,5.78739503,4537.3,4537.2,3.749]
[1757999754703,0.2444,4537.3,4537.2,3.749]
[1757999755002,0.1096,4537.7,4537.2,4.5234]
[1757999755184,2.20385234,4537.6,4537.3,0.4598]
[1757999755499,2.20380818,4537.6,4537.4,3.751]
[1757999755702,0.2651,4537.5,4537.4,3.751]
[1757999756111,0.2651,4537.5,4537.3,0.4598]
[1757999756316,2.46897252,4537.5,4537.4,3.75]
[1757999756467,0.2651,4537.5,4537.4,3.75]
[1757999757910,2.89685674,4537.5,4537.4,3.75]
[1757999758661,2.89685674,4537.5,4537.1,1.695]
[1757999758662,0.693,4537.5,4537.1,1.695]
[1757999758869,7.29859749,4537.2,4537.1,1.695]
[1757999759110,8.10149749,4537.2,4537.1,5.444]
[1757999760295,5.89749503,4537.2,4537.1,5.444]
[1757999760507,7.70209749,4537.2,4537.1,1.695]
[1757999760708,7.70209749,4537.2,4537.1,5.444]
[1757999760878,8.10149749,4537.2,4537.1,5.444]
[1757999761203,7.70209749,4537.2,4537.1,5.444]
[1757999761620,0.1096,4537.2,4537.1,6.2184]
[1757999761912,3.00660246,4537.2,4537.1,0.001]
[1757999762080,6.81770246,4537.2,4537.1,3.749]
[1757999762280,4.5946,4537.2,4537.1,3.749]
[1757999762520,6.79860246,4537.2,4537.1,0.001]
[1757999762721,6.70810246,4537.2,4537.1,0.001]
[1757999762878,6.68900246,4537.2,4537.1,0.001]
[1757999763075,6.26110246,4537.2,4537.1,0.001]
[1757999767021,6.68900246,4537.2,4537.1,0.001]
[1757999767178,6.26110246,4537.2,4537.1,0.001]
[1757999767385,5.46910246,4537.2,4537.1,0.4608]
[1757999767807,3.91775982,4538.0,4537.1,0.4608]
[1757999767808,0.6112073,4538.4,4537.1,0.7754]
[1757999768114,5.09659503,4537.9,4537.1,0.7754]
[1757999768305,2.20381114,4537.6,4537.2,0.8938]
[1757999768508,3.0,4537.7,4537.3,0.4598]
[1757999768691,0.002,4537.9,4537.5,0.3146]
[1757999769013,3.002,4537.9,4537.6,4.2128]
[1757999769213,3.002,4537.9,4537.7,0.4598]
[1757999769416,5.20566816,4537.9,4537.6,3.753]
[1757999769630,5.20566816,4537.9,4537.7,0.4598]
[1757999771727,3.002,4537.9,4537.7,0.4598]
[1757999771923,3.002,4537.9,4537.6,3.753]
[1757999772124,3.002,4537.9,4537.7,0.4598]
[1757999772647,0.1096,4537.8,4537.6,4.187]
[1757999773003,0.1096,4537.8,4537.7,0.3146]
[1757999773243,0.1096,4537.8,4537.7,0.7744]
[1757999773455,2.31331104,4537.8,4537.7,0.4598]
[1757999773621,2.60721104,4537.8,4537.7,0.4598]
[1757999773819,0.4035,4537.8,4537.7,0.4598]
[1757999774443,2.60721104,4537.8,4537.7,0.4598]
[1757999774753,0.1096,4537.8,4537.7,0.4598]
[1757999775157,2.60721104,4537.8,4537.7,0.4598]
[1757999775354,0.1096,4537.8,4537.7,0.4598]
[1757999775558,2.31331104,4537.8,4537.7,0.4598]
[1757999775761,0.1096,4537.8,4537.7,0.4598]
[1757999776558,2.31331104,4537.8,4537.7,0.4598]
[1757999777037,0.1096,4537.8,4537.7,0.4598]
[1757999777244,2.31331104,4537.8,4537.7,0.4598]
[1757999777767,2.57841104,4537.8,4537.7,0.4598]
[1757999778060,2.57842252,4537.8,4537.6,3.753]
[1757999778237,2.20375961,4537.7,4537.6,3.753]
[1757999778567,2.47045961,4537.7,4537.6,3.753]
[1757999779114,2.47045961,4537.7,4537.6,4.2128]
[1757999779947,6.7166062,4537.7,4537.6,4.2128]
[1757999780751,4.24614659,4537.7,4537.6,4.9797]
[1757999781061,4.24614659,4537.7,4537.6,1.2267]
[1757999781221,4.24614659,4537.7,4537.6,4.5129]
[1757999781834,6.4499062,4537.7,4537.6,4.5129]
[1757999782647,4.24614659,4537.7,4537.6,4.5129]
[1757999782857,6.4499062,4537.7,4537.6,4.5129]
[1757999783021,4.24614659,4537.7,4537.6,4.5129]
[1757999783224,6.6867062,4537.7,4537.6,4.2038]
[1757999783837,2.20392064,4537.4,4537.2,14.9578]
[1757999784057,0.1096,4537.8,4537.1,0.1106]
[1757999784058,4.24614659,4537.3,4537.1,0.1106]
[1757999784320,6.45010048,4537.3,4537.1,0.1106]
[1757999784518,6.68880246,4537.2,4537.1,0.001]
[1757999784742,6.68880246,4537.2,4537.1,3.741]
[1757999786244,6.68880246,4537.2,4537.1,3.743]
[1757999787189,7.16410213,4537.2,4537.1,3.743]
[1757999787373,7.16410213,4537.2,4537.1,0.001]
[1757999787981,7.28787341,4537.2,4537.1,0.001]
[1757999788340,7.16410213,4537.2,4537.1,0.001]
[1757999788768,7.30695662,4537.2,4537.1,0.001]
[1757999789559,7.30695662,4537.2,4536.6,1.696]
[1757999789560,5.99624537,4536.7,4536.6,0.001]
[1757999790072,6.68904537,4536.7,4536.6,0.001]
[1757999790859,6.70814537,4536.7,4536.6,0.001]
[1757999791144,0.792,4536.5,4536.1,0.02]
[1757999791348,3.8356271,4536.7,4536.1,0.02]
[1757999791349,5.99648833,4536.2,4536.1,0.02]
[1757999791548,6.28918833,4536.2,4536.1,0.02]
[1757999792587,6.10861521,4536.2,4536.1,0.8278]
[1757999792795,6.10861521,4536.2,4536.1,0.5187]
[1757999792944,6.10861521,4536.2,4536.1,0.02]
[1757999792945,6.34541521,4536.2,4536.1,0.02]
[1757999793391,6.34541521,4536.2,4536.1,0.5187]
[1757999793590,6.10861521,4536.2,4536.1,0.5187]
[1757999793747,6.10861521,4536.2,4536.1,0.02]
[1757999793748,11.0475618,4536.2,4536.1,0.02]
[1757999794068,6.8223817,4536.2,4536.1,0.02]
[1757999794274,11.06852829,4536.2,4536.1,0.5187]
[1757999794579,11.06852829,4536.2,4536.1,0.02]
[1757999795186,10.5937618,4536.2,4536.1,0.02]
[1757999795925,10.5937618,4536.2,4536.1,0.5187]
[1757999796201,10.5937618,4536.2,4536.1,0.02]
[1757999797564,10.5757618,4536.2,4536.1,0.021]
[1757999799662,14.82190839,4536.2,4536.1,0.021]
[1757999800795,10.5757618,4536.2,4536.1,0.021]
[1757999802166,6.32961521,4536.2,4536.1,0.021]
[1757999806198,6.09061521,4536.2,4536.1,0.8288]
[1757999806403,6.09061521,4536.2,4536.1,1.2866]
[1757999806818,6.09061521,4536.2,4536.1,0.8288]
[1757999807645,6.09061521,4536.2,4536.1,0.5197]
[1757999809765,6.09061521,4536.2,4536.1,0.021]
[1757999809766,6.32741521,4536.2,4536.1,0.021]
[1757999809931,6.32741521,4536.2,4536.1,0.5197]
[1757999809932,6.09061521,4536.2,4536.1,0.5197]
[1757999810725,6.35241521,4536.2,4536.1,0.5197]
[1757999811268,6.09061521,4536.2,4536.1,0.8053]
[1757999812254,6.56545982,4536.2,4536.1,0.8053]
[1757999813856,6.56545982,4536.2,4536.1,1.2645]
[1757999815668,6.56545982,4536.2,4536.1,0.8053]
[1757999816164,6.56545982,4536.2,4536.1,1.247]
[1757999817148,6.56745982,4536.2,4536.1,1.247]
[1757999819770,6.69151184,4536.2,4536.1,1.247]
[1757999820354,6.92481184,4536.2,4536.1,0.5197]
[1757999820553,7.51691914,4536.2,4536.1,0.021]
[1757999820868,8.70284641,4536.2,4536.1,0.021]
[1757999821071,8.11073911,4536.2,4536.1,0.021]
[1757999821256,11.86183911,4536.2,4536.1,0.021]
[1757999821671,0.792,4535.9,4535.8,0.001]
[1757999821875,10.53535804,4535.9,4535.8,0.001]
[1757999822043,11.24725804,4535.9,4535.8,0.001]
[1757999822281,11.22815804,4535.9,4535.8,0.001]
[1757999823965,11.31655514,4535.9,4535.8,0.001]
[1757999825122,10.85935514,4535.9,4535.8,0.001]
[1757999825419,11.65292025,4535.9,4535.8,0.001]
[1757999827253,12.12922025,4535.9,4535.8,0.001]
[1757999827398,12.11012025,4535.9,4535.8,0.001]
[1757999829003,12.10983974,4535.9,4535.8,0.001]
[1757999831026,12.12893974,4535.9,4535.8,0.001]
[1757999831231,11.33537463,4535.9,4535.8,0.001]
[1757999831601,2.99682857,4535.5,4535.4,1e-08]
[1757999831818,3.9016,4535.4,4535.1,1e-08]
[1757999832017,6.23477442,4535.2,4535.1,1e-08]
[1757999832302,6.83348849,4535.2,4535.1,1e-08]
[1757999832502,7.28848849,4535.2,4535.1,1e-08]
[1757999832865,7.37689966,4535.2,4535.1,1e-08]
[1757999834522,6.92189966,4535.2,4535.1,1e-08]
[1757999835319,7.51611928,4535.2,4535.1,1e-08]
[1757999839746,7.27831928,4535.2,4535.1,1.20070001]
[1757999840042,7.27831928,4535.2,4535.1,0.46760001]
[1757999840427,7.51161928,4535.2,4535.1,1e-08]
[1757999840634,6.91739966,4535.2,4535.1,1e-08]
[1757999841174,11.23343329,4535.2,4535.1,1e-08]
[1757999844240,10.84597804,4535.2,4535.1,1e-08]
[1757999846474,10.84598529,4535.2,4535.1,1e-08]
[1757999847487,11.30538529,4535.2,4535.1,1e-08]
[1757999847945,10.84598529,4535.2,4535.1,1e-08]
[1757999848150,0.792,4535.0,4534.6,0.001]
[1757999848480,5.99721754,4534.7,4534.6,0.001]
[1757999848701,11.6286126,4534.7,4534.6,0.001]
[1757999848901,2.20546072,4534.2,4533.8,0.001]
[1757999849106,10.31517479,4534.2,4533.8,0.001]
[1757999849268,10.62927479,4534.2,4533.8,0.001]
[1757999849467,11.08567479,4534.2,4533.8,0.001]
[1757999850383,11.55857479,4534.2,4533.8,0.001]
[1757999850602,12.14445586,4534.2,4533.8,0.001]
[1757999852271,11.29215586,4534.2,4533.8,0.001]
[1757999852995,12.14445586,4534.2,4533.8,0.001]
[1757999853299,12.93754466,4534.2,4533.8,0.001]
[1757999853491,12.08524466,4534.2,4533.8,0.001]
[1757999854074,12.08512203,4534.2,4533.8,0.001]
[1757999854281,12.93742203,4534.2,4533.8,0.001]
[1757999857399,12.14433323,4534.2,4533.8,0.001]
[1757999858201,11.76493323,4534.2,4533.8,0.001]
[1757999858396,7.25893323,4534.2,4534.1,1.2223]
[1757999858624,10.77595195,4534.2,4534.1,0.7659]
[1757999858784,11.19703576,4534.2,4534.1,0.001]
[1757999859191,11.99012456,4534.2,4534.1,0.001]
[1757999859614,12.93242456,4534.2,4534.1,0.001]
[1757999860185,11.99012456,4534.2,4534.1,0.001]
[1757999860391,10.97383576,4534.2,4534.1,0.7659]
[1757999860599,11.28793576,4534.2,4534.1,0.001]
[1757999860919,10.97383576,4534.2,4534.1,0.4623]
[1757999861107,10.97383576,4534.2,4534.1,0.7659]
[1757999861289,10.97383576,4534.2,4534.1,1.2223]
[1757999862417,10.97385835,4534.2,4534.1,1.2223]
[1757999862803,10.97385835,4534.2,4534.1,0.7659]
[1757999863223,11.19705835,4534.2,4534.1,0.001]
[1757999863527,11.99014715,4534.2,4534.1,0.001]
[1757999865538,11.99015617,4534.2,4534.1,0.001]
[1757999866331,11.19706737,4534.2,4534.1,0.001]
[1757999866541,12.13936737,4534.2,4534.1,0.001]
[1757999866899,11.19706737,4534.2,4534.1,0.001]
[1757999867456,11.65910959,4534.2,4534.1,0.001]
[1757999868417,10.86690533,4534.2,4534.1,0.001]
[1757999869027,10.64370533,4534.2,4534.1,0.4623]
[1757999869215,11.43596319,4534.2,4534.1,0.4623]
[1757999869413,11.43596319,4534.2,4533.8,0.001]
[1757999869414,2.99760665,4533.9,4533.8,0.001]
[1757999869623,10.18645126,4533.9,4533.8,0.001]
[1757999869807,10.78070694,4533.9,4533.8,0.3046]
[1757999870006,11.62050246,4533.9,4533.8,0.001]
[1757999870324,11.32102187,4533.9,4533.8,0.001]
[1757999870501,10.60502187,4533.9,4533.8,0.001]
[1757999870841,10.60502187,4533.9,4533.8,0.7222]
[1757999871355,2.99770395,4533.7,4533.6,0.001]
[1757999871662,7.51468043,4533.7,4533.6,0.001]
[1757999871865,10.51468043,4533.7,4533.6,0.2882]
[1757999872040,10.60311916,4533.7,4533.6,0.74]
[1757999873358,11.39560665,4533.7,4533.6,0.74]
[1757999875052,7.68360665,4533.7,4533.6,1.1875]
[1757999875239,10.60211916,4533.7,4533.6,0.74]
[1757999875942,6.89111916,4533.7,4533.6,0.74]
[1757999876550,6.89142547,4533.7,4533.6,0.4528]
[1757999876863,7.98301296,4533.7,4533.6,0.001]
[1757999877260,7.68410648,4533.7,4533.6,0.001]
[1757999877465,6.89161899,4533.7,4533.6,0.001]
[1757999879166,6.89161899,4533.7,4533.6,0.7736]
[1757999880155,6.76762995,4533.7,4533.6,0.7736]
[1757999880556,6.56098729,4533.7,4533.6,0.7736]
[1757999881864,6.89207087,4533.7,4533.6,0.7736]
[1757999882262,6.89207087,4533.7,4533.6,0.4872]
[1757999882482,6.89207087,4533.7,4533.6,0.001]
[1757999883201,0.792,4533.4,4533.3,0.001]
[1757999883498,6.8037728,4533.4,4533.3,0.001]
[1757999883659,7.1028728,4533.4,4533.3,0.001]
[1757999883997,8.08921799,4533.4,4533.3,0.001]
[1757999885394,0.1096,4533.3,4533.1,1e-08]
[1757999885559,10.30394818,4533.2,4533.1,1e-08]
[1757999885758,10.80997012,4533.2,4533.1,1e-08]
[1757999885980,11.70787012,4533.2,4533.1,1e-08]
[1757999886178,12.37125304,4533.2,4533.1,1e-08]
[1757999887388,14.69325304,4533.2,4533.1,1e-08]
[1757999887599,13.56286459,4533.2,4533.1,1e-08]
[1757999887803,5.99833659,4532.4,4532.3,0.001]
[1757999887972,7.1929934,4532.4,4532.3,0.001]
[1757999888173,6.59733754,4532.4,4532.3,0.2874]
[1757999888571,6.59733754,4532.4,4532.3,1.2211]
[1757999888572,7.69899062,4532.4,4532.3,1.2211]
[1757999889705,7.69899062,4532.4,4530.9,0.001]
[1757999889706,11.13565403,4532.4,4530.9,0.001]
[1757999889866,2.99896961,4531.1,4531.0,0.9337]
[1757999890071,6.59784047,4531.1,4531.0,1.2201]
[1757999890401,6.47381422,4531.1,4531.0,1.2201]
[1757999890603,6.66259539,4531.1,4531.0,1.2201]
[1757999890810,4.45562578,4531.1,4531.0,1.2201]
[1757999890976,6.66259539,4531.1,4531.0,1.2201]
[1757999891163,4.45562578,4531.1,4531.0,1.2201]
[1757999891594,6.66259539,4531.1,4531.0,0.2864]
[1757999891911,4.45562578,4531.1,4531.0,0.7339]
[1757999893294,3.66362578,4531.1,4531.0,0.7339]
[1757999893913,0.66362578,4531.1,4531.0,0.7339]
[1757999896734,0.66362578,4531.1,4531.0,1.2201]
[1757999897300,0.66362578,4531.1,4531.0,0.7726]
[1757999897627,0.66362578,4531.1,4531.0,4.9601]
[1757999898235,0.66362578,4531.1,4531.0,0.2864]
[1757999898535,0.66362578,4531.1,4531.0,4.0264]
[1757999898703,0.66362578,4531.1,4531.0,4.9601]
[1757999899105,0.66362578,4531.1,4531.0,4.5126]
[1757999899335,0.66362578,4531.1,4531.0,4.0264]
[1757999899535,0.66362578,4531.1,4531.0,0.2864]
[1757999899757,0.66362578,4531.1,4531.0,4.0264]
[1757999901051,0.66362578,4531.1,4531.0,4.9303]
[1757999901257,0.66362578,4531.1,4531.0,4.9293]
[1757999902143,0.66362578,4531.1,4531.0,4.4874]
[1757999902309,0.66362578,4531.1,4531.0,4.0254]
[1757999902830,0.66362578,4531.1,4531.0,0.2864]
[1757999903029,0.66362578,4531.1,4531.0,3.737]
[1757999903350,0.66362578,4531.1,4531.0,4.0302]
[1757999903810,4.9215096,4531.1,4531.0,4.0302]
[1757999904232,4.9215096,4531.1,4530.8,0.08]
[1757999904439,4.9215096,4531.1,4530.9,3.736]
[1757999905035,4.9215096,4531.1,4531.0,3.735]
[1757999905408,5.6688096,4531.1,4530.8,0.08]
[1757999905609,2.20706702,4530.9,4530.8,0.08]
[1757999905914,2.20706702,4530.9,4530.8,3.814]
[1757999906315,6.15869666,4530.9,4530.8,3.814]
[1757999907850,6.95069666,4530.9,4530.8,3.814]
[1757999908214,4.45552964,4530.9,4530.8,4.1082]
[1757999908628,4.45552964,4530.9,4530.8,5.0121]
[1757999909020,3.66352964,4530.9,4530.8,5.0131]
[1757999912151,3.66352964,4530.9,4530.8,1.2791]
[1757999912453,3.66352964,4530.9,4530.8,0.081]
[1757999912681,6.65369666,4530.9,4530.8,3.811]
[1757999912964,8.79370069,4530.9,4530.8,0.081]
[1757999913328,9.38813766,4530.9,4530.8,0.081]
[1757999913840,8.79370069,4530.9,4530.8,0.081]
[1757999914242,9.38813766,4530.9,4530.8,0.081]
[1757999917654,8.91770878,4530.9,4530.8,0.081]
[1757999917871,9.51295867,4530.9,4530.8,0.081]
[1757999918165,9.51295748,4530.9,4530.8,0.081]
[1757999918335,8.91770878,4530.9,4530.8,0.081]
[1757999919439,8.91772741,4530.9,4530.8,0.081]
[1757999920770,13.44393523,4530.9,4530.8,0.081]
[1757999920970,12.64972741,4530.9,4530.8,1e-08]
[1757999921179,13.84103914,4530.9,4530.8,1e-08]
[1757999921376,12.64972741,4530.9,4530.8,1e-08]
[1757999922154,13.44329508,4530.9,4530.8,1e-08]
[1757999922353,13.44329508,4530.9,4530.7,0.001]
[1757999922354,5.99911574,4530.8,4530.7,0.001]
[1757999922551,5.99926189,4530.5,4530.4,0.001]
[1757999922767,12.35149969,4530.5,4530.4,0.001]
[1757999922963,8.58861587,4530.5,4530.4,0.001]
[1757999923175,15.87357213,4530.5,4530.4,0.001]
[1757999923379,16.33277213,4530.5,4530.4,0.001]
[1757999923568,15.87357213,4530.5,4530.4,0.001]
[1757999924190,16.33277213,4530.5,4530.4,0.001]
[1757999925001,15.87357213,4530.5,4530.4,0.001]
[1757999925358,7.69517748,4530.5,4530.4,0.2952]
[1757999925702,6.18456159,4530.5,4530.4,0.7572]
[1757999925880,6.500783,4530.5,4530.4,0.7572]
[1757999926268,6.500783,4530.5,4530.4,0.2952]
[1757999926859,6.50070058,4530.5,4530.4,0.2952]
[1757999928086,3.29500839,4530.5,4530.4,0.7572]
[1757999928418,3.19809567,4530.5,4530.4,1.1991]
[1757999928722,5.40535756,4530.5,4530.4,0.2952]
[1757999928942,5.40535756,4530.5,4530.4,0.001]
[1757999929471,7.18693604,4530.5,4530.4,0.001]
[1757999929716,8.12187201,4530.5,4530.4,0.001]
[1757999930009,8.32835181,4530.5,4530.4,0.001]
[1757999930505,8.3283742,4530.5,4530.4,0.001]
[1757999932240,12.0583742,4530.5,4530.4,0.001]
[1757999932577,12.18230864,4530.5,4530.4,0.001]
[1757999933381,12.46553739,4530.5,4530.4,0.001]
[1757999933689,13.25896062,4530.5,4530.4,0.001]
[1757999933886,13.25919589,4530.5,4530.4,0.001]
[1757999934306,13.25929272,4530.5,4530.4,0.001]
[1757999935588,11.72444074,4530.5,4530.4,0.001]
[1757999935793,11.43634074,4530.5,4530.4,0.001]
[1757999936075,12.19330774,4530.5,4530.4,0.001]
[1757999936504,12.98673097,4530.5,4530.4,0.001]
[1757999936824,12.98655224,4530.5,4530.4,0.001]
[1757999937232,12.19330774,4530.5,4530.4,0.001]
[1757999937527,15.87359156,4530.5,4530.4,0.001]